bitfinex/quotes_ETHUSD_20220115
["timestamp","ask_amount","ask_price","bid_price","bid_amount"]
[1642249216488,3.74320603,3320.0,3319.4,8.09410795]
[1642249216887,0.0022737,3319.9,3319.4,8.09410795]
[1642249217187,0.00170528,3319.8,3319.4,8.09410795]
[1642249217390,0.00170528,3319.8,3319.4,8.07207595]
[1642249217589,1.5059,3320.7,3319.4,8.07207595]
[1642249217590,0.00113685,3319.7,3319.4,8.07207595]
[1642249217794,0.00113685,3319.7,3319.4,7.31919595]
[1642249217990,0.7529907,3320.3,3319.4,7.31919595]
[1642249218390,0.00397897,3320.2,3320.1,1.22829145]
[1642249219493,0.00397897,3320.2,3319.4,6.77815]
[1642249219934,6.59156176,3320.5,3319.4,6.77815]
[1642249219935,0.00341055,3320.1,3319.4,6.77815]
[1642249220337,0.00284212,3320.0,3319.5,1.19933805]
[1642249220735,0.00511582,3320.4,3319.5,1.19933805]
[1642249221135,0.00454739,3320.3,3319.5,1.19933805]
[1642249221536,0.00397897,3320.2,3319.5,1.19933805]
[1642249221937,0.00341055,3320.1,3319.5,1.19933805]
[1642249222142,3.07078653,3319.6,3319.5,1.19933805]
[1642249222337,3.07078653,3319.6,3319.5,7.22433805]
[1642249223238,3.07078653,3319.6,3319.5,9.72433805]
[1642249225589,3.07078653,3319.7,3319.5,9.72433805]
[1642249225989,3.07078653,3319.7,3319.6,0.00284212]
[1642249226587,3.8393569,3320.1,3319.6,0.00284212]
[1642249227643,3.8393569,3320.0,3319.5,9.72401175]
[1642249227838,3.84163059,3320.0,3319.5,9.72401175]
[1642249228037,0.00170527,3319.9,3319.5,9.72401175]
[1642249228439,0.00113685,3319.8,3319.5,9.72401175]
[1642249228941,0.00170527,3319.9,3319.5,9.72401175]
[1642249229338,0.00113685,3319.8,3319.5,9.72401175]
[1642249229739,0.00170527,3319.9,3319.5,8.525]
[1642249230239,0.00113685,3319.8,3319.5,8.525]
[1642249230640,0.00170527,3319.9,3319.5,8.525]
[1642249231197,0.00113685,3319.8,3319.5,8.525]
[1642249231584,0.00170527,3319.9,3319.5,8.525]
[1642249231984,0.00113685,3319.8,3319.5,8.525]
[1642249232184,0.00113685,3319.8,3319.6,1.48481875]
[1642249232384,0.00170527,3319.9,3319.6,1.48481875]
[1642249232584,0.00170527,3319.9,3319.5,8.525]
[1642249232585,3.84106217,3319.9,3319.5,8.525]
[1642249232785,0.00113685,3319.8,3319.5,8.525]
[1642249234942,0.00113685,3319.8,3319.5,9.27793]
[1642249235745,0.00113685,3319.8,3319.5,8.525]
[1642249242938,5.16881273,3319.9,3319.5,8.525]
[1642249243139,5.16881273,3319.9,3319.6,0.00113685]
[1642249243340,1.37831898,3319.8,3319.5,4.40337802]
[1642249244441,3.79049375,3319.9,3319.5,4.40337802]
[1642249246984,0.51559691,3319.8,3319.5,4.40337802]
[1642249248787,1.37831898,3319.7,3319.5,4.40337802]
[1642249250838,0.51560472,3319.6,3319.5,4.40337802]
[1642249251740,1.8939237,3319.6,3319.5,4.40337802]
[1642249255986,4.96803986,3319.6,3319.5,4.40337802]
[1642249256789,1.8939237,3319.6,3319.5,4.40337802]
[1642249259144,4.96803986,3319.6,3319.5,4.40337802]
[1642249259337,1.8939237,3319.6,3319.5,4.40337802]
[1642249259537,1.8939237,3319.6,3319.5,5.60179357]
[1642249259937,1.8939237,3319.6,3319.5,4.40337802]
[1642249260937,0.51560472,3319.6,3319.5,5.6784129]
[1642249261792,0.51560472,3320.2,3319.5,5.6784129]
[1642249261988,0.51560472,3320.2,3319.6,0.024853]
[1642249262189,0.51901526,3320.2,3319.6,0.024853]
[1642249262992,0.7530404,3320.1,3319.6,0.024853]
[1642249263189,0.51560472,3320.1,3319.6,0.024853]
[1642249263392,0.00227369,3320.0,3319.6,0.024853]
[1642249263790,0.00170527,3319.9,3319.6,0.024853]
[1642249263990,0.00170527,3319.9,3319.5,4.40337802]
[1642249264192,0.00113685,3319.8,3319.5,4.40337802]
[1642249264497,0.00113685,3319.8,3319.1,0.021822]
[1642249264498,5.95,3319.5,3319.1,0.021822]
[1642249264692,5.95,3319.5,3318.8,0.021822]
[1642249264938,5.95,3319.5,3319.2,0.0022737]
[1642249265538,0.7532651,3319.4,3319.1,0.00284212]
[1642249266339,1.5065351,3319.4,3319.1,0.00284212]
[1642249266838,0.51560472,3319.3,3319.1,0.00284212]
[1642249268140,0.98819584,3319.2,3319.1,0.00284212]
[1642249269388,0.51560472,3319.3,3319.1,0.00284212]
[1642249269592,0.51560472,3319.2,3319.1,0.00284212]
[1642249269791,2.02209792,3319.2,3318.9,0.00397897]
[1642249270189,4.84030691,3319.2,3318.9,0.00397897]
[1642249270590,4.87187828,3319.2,3318.9,0.00397897]
[1642249270792,2.02209792,3319.2,3318.9,0.00397897]
[1642249270991,0.51560472,3319.1,3318.9,0.00397897]
[1642249273236,0.51560472,3319.1,3318.8,0.00454739]
[1642249275737,0.41259901,3319.1,3318.8,0.00454739]
[1642249276684,0.40641866,3319.1,3318.8,0.00454739]
[1642249278385,0.40641866,3319.1,3318.8,0.02852839]
[1642249278786,0.40641866,3319.1,3318.9,0.00397897]
[1642249279186,0.7531921,3319.4,3318.9,0.00397897]
[1642249279385,0.7531921,3319.4,3318.9,0.02767697]
[1642249279786,0.7531921,3319.4,3319.0,0.00341054]
[1642249280037,0.75317,3319.6,3319.0,0.02716554]
[1642249280435,0.75317,3319.6,3319.1,0.00284212]
[1642249280637,0.75317,3319.6,3319.1,0.02920112]
[1642249281640,0.75317,3319.6,3319.2,0.0263]
[1642249281844,0.83607193,3319.8,3319.2,0.0263]
[1642249282141,0.00113685,3319.8,3319.3,0.00170527]
[1642249283341,0.75422685,3319.8,3319.3,0.00170527]
[1642249283793,0.75422685,3319.8,3319.3,0.02593327]
[1642249283988,0.75422685,3319.8,3319.3,0.00170527]
[1642249284186,0.75422685,3319.8,3319.4,0.00113685]
[1642249284385,0.75422685,3319.8,3319.3,0.00170527]
[1642249285187,1.53413011,3319.4,3319.3,0.00170527]
[1642249286587,2.30119516,3319.6,3319.3,0.00170527]
[1642249287536,1.53391187,3319.4,3319.3,0.00170527]
[1642249289739,1.06582407,3319.5,3319.3,0.00170527]
[1642249289939,3.80749566,3319.6,3319.3,0.00170527]
[1642249289940,4.87331973,3319.6,3319.3,0.00170527]
[1642249290139,4.87331973,3319.6,3319.1,0.02466412]
[1642249290340,7.75969041,3319.6,3319.1,0.02466412]
[1642249290545,4.87331973,3319.6,3319.1,0.02466412]
[1642249290743,3.36701923,3319.5,3319.1,0.02466412]
[1642249291391,3.36701923,3319.5,3319.2,0.025845]
[1642249291590,1.53405463,3319.3,3319.2,0.025845]
[1642249291790,1.53405463,3319.3,3319.1,0.021822]
[1642249291990,1.53405463,3319.3,3319.0,0.021822]
[1642249292190,1.53405463,3319.4,3319.0,0.021822]
[1642249292391,1.53405463,3319.4,3319.1,0.00284212]
[1642249292590,1.53405463,3319.4,3319.1,0.02623912]
[1642249292991,1.53405463,3319.3,3319.2,0.0022737]
[1642249293791,1.53405463,3319.4,3319.2,0.0022737]
[1642249294791,1.06582407,3319.3,3319.2,0.0022737]
[1642249295742,2.5998787,3319.4,3319.2,0.0022737]
[1642249296738,1.53405463,3319.4,3319.2,0.0022737]
[1642249297539,1.06582407,3319.3,3319.2,0.0022737]
[1642249297940,1.58143312,3319.3,3319.2,0.0022737]
[1642249298344,0.51560905,3319.3,3319.2,0.0022737]
[1642249298991,1.58143312,3319.3,3319.2,0.0022737]
[1642249303941,3.11548775,3319.3,3319.2,0.0022737]
[1642249305539,3.11548775,3319.3,3319.2,0.0243267]
[1642249305739,3.11548775,3319.3,3319.2,0.0022737]
[1642249306389,1.58143312,3319.3,3319.2,0.0022737]
[1642249309295,3.11548775,3319.3,3319.2,0.0022737]
[1642249310141,1.58143312,3319.3,3319.2,0.0022737]
[1642249315388,1.58143312,3319.3,3319.0,0.00341054]
[1642249315591,1.58143312,3319.3,3318.0,2.73319071]
[1642249315592,0.045463,3319.1,3318.0,1.50642]
[1642249315792,1.033463,3319.1,3318.2,6.0266]
[1642249315992,4.44470448,3319.0,3318.2,6.03114739]
[1642249316189,4.96031353,3319.0,3318.2,6.03114739]
[1642249316789,1.37459828,3318.9,3318.2,6.03114739]
[1642249317440,3.98021162,3318.3,3318.2,6.03114739]
[1642249317842,7.68193935,3318.3,3318.2,6.03114739]
[1642249318841,7.52161149,3318.3,3318.2,6.03114739]
[1642249319041,8.58743556,3318.3,3318.2,6.03114739]
[1642249320744,11.65569577,3318.3,3318.2,6.03114739]
[1642249320944,8.68396804,3318.3,3318.2,6.03114739]
[1642249322996,7.95396804,3318.3,3318.2,6.03114739]
[1642249323194,4.0263492,3318.3,3318.2,6.03114739]
[1642249323596,2.85911821,3318.3,3318.2,6.03114739]
[1642249323996,2.85911821,3318.3,3318.2,7.40073396]
[1642249324696,1.58143312,3318.3,3318.2,7.40073396]
[1642249325742,1.58143312,3318.3,3318.2,6.03114739]
[1642249327048,3.12094327,3318.3,3318.2,7.37846233]
[1642249327644,1.58143312,3318.3,3318.2,7.37846233]
[1642249328695,1.58143312,3318.3,3318.2,6.03114739]
[1642249330693,1.58143312,3318.3,3318.2,8.10967922]
[1642249331494,1.58143312,3318.3,3318.2,10.72565837]
[1642249331694,1.58143312,3318.3,3318.2,8.10967922]
[1642249332298,3.11993736,3318.3,3318.2,10.69006066]
[1642249332539,3.11993736,3318.3,3318.2,8.10967922]
[1642249332739,2.05411329,3318.3,3318.2,8.10967922]
[1642249332939,0.51560905,3318.3,3318.2,8.10967922]
[1642249333440,0.51560905,3318.3,3318.2,10.71859117]
[1642249333640,1.58143312,3318.3,3318.2,10.71859117]
[1642249334339,1.06582407,3318.3,3318.2,10.71859117]
[1642249334541,1.53850424,3318.5,3318.3,5.95]
[1642249334740,1.53850424,3318.5,3318.4,4.33239422]
[1642249335045,1.53850424,3318.5,3318.4,4.33580476]
[1642249335239,1.53850424,3318.6,3318.4,4.33580476]
[1642249335441,1.53850424,3318.6,3318.5,4.40313]
[1642249335641,2.3088778,3318.8,3318.6,5.95]
[1642249335940,2.3088778,3318.8,3318.7,6.44426157]
[1642249336200,2.3088778,3318.8,3318.7,12.47246684]
[1642249336596,2.30486322,3318.8,3318.7,12.47246684]
[1642249336895,2.30600006,3319.2,3318.9,0.75305]
[1642249337094,2.30600006,3319.2,3319.0,2.69383557]
[1642249338195,0.00113684,3319.2,3319.0,3.33768458]
[1642249338394,0.00113684,3319.2,3319.0,0.7529891]
[1642249338598,0.00113684,3319.2,3318.9,0.75305]
[1642249339396,0.00113684,3319.2,3319.0,2.65331084]
[1642249339596,2.24600006,3319.5,3319.0,2.65331084]
[1642249339797,2.24600006,3319.5,3318.9,0.75305]
[1642249340042,0.00113685,3319.4,3318.9,0.75305]
[1642249340247,0.00113685,3319.4,3319.2,0.75305]
[1642249340444,0.00170527,3319.5,3319.2,0.75305]
[1642249341643,0.51556005,3319.4,3319.2,0.75305]
[1642249343347,0.51556005,3319.4,3319.1,1.50608]
[1642249344692,0.51556005,3319.4,3319.2,2.54513906]
[1642249345294,1.54087645,3319.3,3319.2,2.54513906]
[1642249346194,2.0564365,3319.4,3319.2,2.54513906]
[1642249346593,2.0564365,3319.4,3319.2,3.29814906]
[1642249346794,1.54087645,3319.4,3319.3,2.60119914]
[1642249347193,1.54258172,3319.5,3319.3,2.60119914]
[1642249348046,0.51554029,3319.4,3319.3,2.60119914]
[1642249349444,1.54258172,3319.5,3319.3,8.62659914]
[1642249349645,1.54258172,3319.5,3319.4,2.54343774]
[1642249350045,1.54258172,3319.5,3319.3,6.0254]
[1642249350445,1.54258172,3319.5,3319.3,8.56897844]
[1642249350654,1.54087645,3319.4,3319.3,6.0254]
[1642249350845,2.056416,3319.4,3319.3,6.0254]
[1642249351046,0.51553955,3319.4,3319.3,6.0254]
[1642249352399,0.51553955,3319.4,3319.3,8.63356932]
[1642249352599,0.51553955,3319.4,3319.3,8.64401592]
[1642249353001,0.51553955,3319.4,3319.3,6.0254]
[1642249353400,2.05836752,3319.4,3319.3,6.0254]
[1642249353999,2.05836752,3319.4,3319.3,8.61834344]
[1642249354939,3.21095067,3319.4,3319.3,10.03995884]
[1642249356545,3.21095067,3319.4,3319.3,11.32048213]
[1642249358047,3.21095067,3319.4,3319.3,8.72753869]
[1642249358251,3.21095067,3319.4,3319.3,11.31406362]
[1642249359396,2.69541112,3319.4,3319.3,8.72753869]
[1642249360196,1.15258315,3319.4,3319.3,8.72753869]
[1642249360901,1.66811976,3319.4,3319.3,8.72753869]
[1642249361095,2.05916236,3319.4,3319.3,8.72753869]
[1642249361997,3.21174551,3319.4,3319.3,8.72753869]
[1642249363448,3.21174551,3319.4,3319.3,7.4470154]
[1642249365144,1.66811976,3319.4,3319.3,7.4470154]
[1642249365544,1.71358276,3319.4,3319.3,7.4470154]
[1642249366898,4.91358276,3319.4,3319.3,1.71275894]
[1642249367099,7.6080485,3319.4,3319.3,1.71275894]
[1642249367899,8.4672777,3319.4,3319.3,1.71275894]
[1642249368099,5.77281196,3319.4,3319.3,1.71275894]
[1642249368302,8.52667847,3319.4,3319.3,1.71275894]
[1642249368901,8.52667847,3319.4,3319.3,0.06700424]
[1642249369701,5.77281196,3319.4,3319.3,0.06700424]
[1642249370945,4.91358276,3319.4,3319.3,0.06700424]
[1642249372446,4.92827269,3319.4,3319.3,0.06700424]
[1642249377295,8.00160459,3319.4,3319.3,0.06700424]
[1642249377941,8.86083379,3319.4,3319.3,0.06700424]
[1642249380946,5.78750189,3319.4,3319.3,0.06700424]
[1642249382092,4.92827269,3319.4,3319.3,0.06700424]
[1642249382692,4.80048466,3319.4,3319.3,0.06700424]
[1642249383392,1.72827269,3319.4,3319.3,0.06700424]
[1642249384092,1.72827269,3319.4,3319.3,0.00358507]
[1642249385944,4.32827269,3319.4,3319.3,0.00358507]
[1642249386446,7.40048466,3319.4,3319.3,0.00358507]
[1642249387047,4.32827269,3319.4,3319.3,0.00358507]
[1642249391799,1.72827269,3319.4,3319.3,0.00358507]
[1642249392203,1.70751169,3319.4,3319.3,0.00358507]
[1642249392646,4.78183972,3319.4,3319.3,0.00358507]
[1642249392846,4.81674972,3319.4,3319.3,0.00358507]
[1642249393045,4.79204772,3319.4,3319.3,0.00358507]
[1642249393245,3.63946457,3319.4,3319.3,0.00358507]
[1642249394246,1.71771969,3319.4,3319.3,0.00358507]
[1642249395847,4.79204772,3319.4,3319.3,0.00358507]
[1642249396894,1.71771969,3319.4,3319.3,0.00358507]
[1642249399598,4.76771969,3319.4,3319.3,0.00012765]
[1642249399798,1.71771969,3319.4,3319.3,0.00012765]
[1642249400046,1.68280969,3319.4,3319.3,0.00012765]
[1642249400441,1.71122569,3319.4,3319.3,0.00012765]
[1642249401143,4.78684839,3319.4,3319.3,0.00012765]
[1642249401842,1.71122569,3319.4,3319.3,0.00012765]
[1642249402644,4.36122569,3319.4,3319.3,0.00012765]
[1642249405094,7.43596397,3319.4,3319.3,0.00012765]
[1642249405893,5.22045489,3319.4,3319.3,0.00012765]
[1642249406894,8.29467896,3319.4,3319.3,0.00012765]
[1642249407094,5.66172596,3319.4,3319.3,0.00012765]
[1642249408445,2.58750189,3319.4,3319.3,0.00012765]
[1642249408648,4.62827269,3319.4,3319.3,0.00012765]
[1642249411044,4.57827269,3319.4,3319.3,0.00012765]
[1642249411303,7.20149943,3319.4,3319.3,0.00012765]
[1642249411500,10.44766717,3319.4,3319.3,0.00012765]
[1642249412098,8.14766717,3319.4,3319.3,0.00012765]
[1642249413099,9.00689637,3319.4,3319.3,0.00012765]
[1642249414198,2.35067235,3319.1,3319.0,1.0]
[1642249414398,2.395463,3319.1,3319.0,1.0]
[1642249415751,5.045463,3319.1,3319.0,0.02115985]
[1642249416147,6.19804615,3319.1,3319.0,0.02115985]
[1642249417150,7.28558911,3319.1,3319.0,0.02115985]
[1642249417347,4.42193305,3319.1,3319.0,0.02115985]
[1642249418348,3.56270385,3319.1,3319.0,0.02115985]
[1642249418548,6.51032101,3319.1,3319.0,0.02115985]
[1642249419397,4.81997306,3319.1,3319.0,0.02115985]
[1642249419697,5.67920226,3319.1,3319.0,0.02115985]
[1642249420296,2.7315851,3319.1,3319.0,0.02115985]
[1642249422541,1.8723559,3319.1,3319.0,0.02115985]
[1642249423345,4.81074926,3319.1,3319.0,0.02115985]
[1642249424340,4.4723559,3319.1,3319.0,0.02115985]
[1642249426599,5.3315851,3319.1,3319.0,0.02115985]
[1642249427601,9.19051097,3319.1,3319.0,0.02115985]
[1642249428000,6.59051097,3319.1,3319.0,0.02115985]
[1642249428609,2.7315851,3319.1,3319.0,0.02115985]
[1642249430344,5.5815851,3319.1,3319.0,0.02115985]
[1642249430745,5.5815851,3319.1,3319.0,0.00033994]
[1642249431044,1.8723559,3319.1,3319.0,0.00033994]
[1642249431255,1.16724085,3319.1,3319.0,0.00033994]
[1642249432245,1.68290833,3319.1,3319.0,0.00033994]
[1642249433698,1.70785233,3319.1,3319.0,0.00033994]
[1642249435094,4.79245716,3319.1,3319.0,0.00033994]
[1642249438043,1.70785233,3319.1,3319.0,0.00033994]
[1642249439444,4.79238932,3319.1,3319.0,0.00033994]
[1642249440247,1.74595133,3319.1,3319.0,0.00033994]
[1642249440445,1.72100733,3319.1,3319.0,0.00033994]
[1642249441811,1.70795133,3319.1,3319.0,0.00033994]
[1642249442410,4.79253672,3319.1,3319.0,0.00033994]
[1642249443006,3.63995357,3319.1,3319.0,0.00033994]
[1642249443809,1.70795133,3319.1,3319.0,0.00033994]
[1642249445846,1.70795133,3319.1,3318.3,1.25672977]
[1642249446047,1.71888933,3319.1,3318.4,2.69773746]
[1642249446251,1.71888933,3319.1,3318.4,2.70228484]
[1642249446448,0.51566748,3319.0,3318.4,2.70228484]
[1642249446846,2.31922599,3318.7,3318.4,2.70228484]
[1642249447052,3.81496081,3318.7,3318.4,2.70228484]
[1642249447247,3.81496081,3318.7,3318.4,0.00454738]
[1642249447646,0.51566748,3318.6,3318.4,0.00454738]
[1642249448447,1.15258315,3318.5,3318.4,0.00454738]
[1642249448998,0.51566748,3318.5,3318.4,0.00454738]
[1642249449602,1.66825063,3318.5,3318.4,1.23921824]
[1642249451000,1.66825063,3318.5,3318.4,3.88932082]
[1642249452445,1.68284385,3318.5,3318.4,3.88932082]
[1642249454948,1.68284385,3318.5,3318.4,1.23921824]
[1642249459595,1.71176485,3318.5,3318.4,1.23921824]
[1642249460445,1.71176485,3318.5,3318.4,0.00454738]
[1642249460645,4.03099084,3318.5,3318.4,0.00454738]
[1642249460845,4.03099084,3318.5,3318.3,0.00511581]
[1642249461045,4.03099084,3318.5,3318.1,0.00625265]
[1642249461646,0.51566748,3318.4,3318.1,0.00625265]
[1642249462346,0.53024995,3318.4,3318.1,0.00625265]
[1642249462550,1.54622613,3318.2,3318.1,0.00625265]
[1642249464198,2.69880928,3318.2,3318.1,0.00625265]
[1642249464597,3.21447676,3318.2,3318.1,0.00625265]
[1642249465597,1.66825063,3318.2,3318.1,0.00625265]
[1642249467452,1.6828116,3318.2,3318.1,0.00625265]
[1642249468250,3.22903773,3318.2,3318.1,0.00625265]
[1642249470254,3.22903773,3318.2,3318.1,2.56718819]
[1642249472201,1.6828116,3318.2,3318.1,2.56718819]
[1642249473005,1.6828116,3318.2,3318.1,0.00625265]
[1642249474003,3.22903773,3318.2,3318.1,0.00625265]
[1642249474203,3.22903773,3318.2,3318.1,2.57295363]
[1642249474804,1.6828116,3318.2,3318.1,2.57295363]
[1642249475443,1.6828116,3318.2,3318.1,0.00625265]
[1642249476244,1.7282746,3318.2,3318.1,0.00625265]
[1642249476650,3.27450073,3318.2,3318.1,0.00625265]
[1642249477346,1.7282746,3318.2,3317.8,0.00795792]
[1642249477546,0.045463,3318.1,3317.8,0.00795792]
[1642249477845,0.044951,3318.0,3317.8,0.00795792]
[1642249478047,0.035509,3318.0,3317.8,0.00795792]
[1642249478249,4.00203759,3318.2,3317.8,0.00795792]
[1642249478713,0.51566748,3318.1,3317.8,0.00795792]
[1642249478906,1.5462759,3318.0,3317.9,1.10377993]
[1642249479306,2.92222932,3318.0,3317.9,1.11116943]
[1642249480106,2.06194338,3318.0,3317.9,1.11116943]
[1642249482006,2.08931038,3318.0,3317.9,1.11116943]
[1642249482447,2.07648285,3318.0,3317.9,1.11116943]
[1642249483451,2.10714085,3318.0,3317.9,1.11116943]
[1642249483645,2.07648285,3318.0,3317.9,1.11116943]
[1642249484847,0.53020695,3318.0,3317.9,1.11116943]
[1642249487496,0.57566995,3318.0,3317.9,1.11116943]
[1642249488898,0.57566995,3318.0,3317.9,0.0073895]
[1642249489399,0.57566995,3318.0,3317.5,0.00966319]
[1642249489597,0.045463,3317.6,3317.5,0.00966319]
[1642249490847,1.56825136,3317.7,3317.5,0.00966319]
[1642249491261,0.51566748,3317.6,3317.5,0.00966319]
[1642249492448,0.53016394,3317.6,3317.5,0.00966319]
[1642249492847,0.01449646,3317.6,3317.5,0.00966319]
[1642249494294,0.53016394,3317.6,3317.5,0.00966319]
[1642249494494,2.04570228,3317.6,3317.5,0.00966319]
[1642249505347,2.04570228,3317.6,3317.5,2.60914335]
[1642249505546,2.04570228,3317.6,3317.5,0.00966319]
[1642249506047,2.04570228,3317.6,3317.5,1.01112149]
[1642249509402,2.04570228,3317.6,3317.5,3.69069176]
[1642249509997,2.07288128,3317.6,3317.5,1.01112149]
[1642249510195,2.11099628,3317.6,3317.5,1.01112149]
[1642249510396,2.04570228,3317.6,3317.5,1.01112149]
[1642249513652,1.5300348,3317.6,3317.5,1.01112149]
[1642249514851,2.04580807,3317.6,3317.5,1.01112149]
[1642249515053,3.59223743,3317.6,3317.5,1.01112149]
[1642249516201,2.04580807,3317.6,3317.5,1.01112149]
[1642249516398,1.5300348,3317.6,3317.5,1.01112149]
[1642249519099,2.04580572,3317.6,3317.5,1.01112149]
[1642249519401,2.04580572,3317.6,3317.5,1.0014583]
[1642249519799,2.06915472,3317.6,3317.5,1.0014583]
[1642249520048,2.07903072,3317.6,3317.5,1.0014583]
[1642249525601,2.07903072,3317.6,3317.4,4.2146]
[1642249525803,3.62546008,3317.6,3317.4,4.2146]
[1642249526005,1.56385718,3317.5,3317.4,4.2146]
[1642249526201,1.56385718,3317.5,3317.1,1.1827]
[1642249526202,2.0796281,3317.5,3317.1,1.1827]
[1642249526403,3.59516644,3317.5,3317.4,0.01023162]
[1642249527002,2.03130926,3317.5,3317.4,0.01023162]
[1642249527203,0.51577092,3317.5,3317.4,0.01023162]
[1642249527453,0.53025663,3317.5,3317.4,0.01023162]
[1642249527649,0.53025663,3317.5,3317.3,0.01080004]
[1642249528249,0.53025663,3317.5,3317.4,0.95136216]
[1642249529749,0.55220363,3317.5,3317.4,0.95136216]
[1642249529953,0.53025663,3317.5,3317.4,0.95136216]
[1642249532099,0.56615063,3317.5,3317.4,0.95136216]
[1642249532698,2.11257999,3317.5,3317.4,0.95136216]
[1642249534098,2.88579467,3317.5,3317.3,0.01080004]
[1642249534299,0.045463,3317.4,3317.3,0.01080004]
[1642249534497,0.045463,3317.4,3316.8,0.01364216]
[1642249534498,0.56123392,3317.4,3316.8,0.01364216]
[1642249534697,0.045463,3317.3,3316.8,0.01364216]
[1642249534951,0.51577092,3317.4,3316.8,0.01364216]
[1642249535253,0.034294,3317.3,3316.8,0.01364216]
[1642249535850,0.51577092,3317.2,3316.8,0.01364216]
[1642249536352,1.48602137,3317.1,3316.9,0.92245669]
[1642249536752,0.045463,3317.0,3316.9,0.92245669]
[1642249537152,0.045463,3317.0,3316.9,0.93553043]
[1642249537153,0.31942833,3317.0,3316.9,0.93553043]
[1642249537353,0.83519925,3317.0,3316.9,0.93553043]
[1642249537552,2.13648127,3317.0,3316.9,0.93553043]
[1642249538354,2.13648127,3317.0,3316.9,0.01307374]
[1642249538796,2.13648127,3317.0,3316.7,0.01421058]
[1642249538996,0.045463,3316.8,3316.7,0.01421058]
[1642249539397,0.044397,3316.8,3316.7,0.01421058]
[1642249539596,0.034194,3316.8,3316.7,0.01421058]
[1642249539896,1.59222976,3316.8,3316.7,0.01421058]
[1642249540300,2.10800068,3316.8,3316.6,0.01477901]
[1642249540497,2.09651968,3316.8,3316.6,0.01477901]
[1642249540697,1.48254191,3316.7,3316.6,0.01477901]
[1642249540897,1.50440491,3316.7,3316.6,0.01477901]
[1642249541598,2.02017583,3316.7,3316.6,0.01477901]
[1642249542200,1.99831283,3316.7,3316.6,0.01477901]
[1642249542446,2.01351315,3316.7,3316.6,0.01477901]
[1642249542853,3.66802305,3316.7,3316.6,0.01477901]
[1642249543248,3.69359805,3316.7,3316.6,0.01477901]
[1642249543451,6.63599508,3316.7,3316.6,0.01477901]
[1642249543650,3.71348605,3316.7,3316.6,0.01477901]
[1642249544449,4.58878605,3316.7,3316.6,0.01477901]
[1642249545249,7.47029355,3316.7,3316.6,0.01477901]
[1642249545453,4.58878605,3316.7,3316.6,0.01477901]
[1642249545650,7.46525597,3316.7,3316.6,0.01477901]
[1642249546320,7.46525597,3316.7,3316.0,0.01818955]
[1642249546516,0.045463,3316.4,3316.0,0.01818955]
[1642249546713,4.39053436,3316.5,3316.0,0.01818955]
[1642249546916,0.045463,3316.3,3316.0,0.01818955]
[1642249547115,0.045463,3316.3,3315.8,0.01932639]
[1642249547515,0.045463,3316.1,3315.8,0.01932639]
[1642249547715,0.041097,3316.1,3315.8,0.01932639]
[1642249548019,1.5166674,3316.0,3315.8,0.01932639]
[1642249548216,1.5480244,3316.0,3315.8,0.01932639]
[1642249548418,1.5166674,3316.0,3315.8,0.01932639]
[1642249549716,1.6545099,3315.9,3315.8,0.01932639]
[1642249550156,2.17047044,3315.9,3315.8,0.01932639]
[1642249550559,1.5166674,3316.0,3315.9,0.09124056]
[1642249550755,1.5166674,3316.0,3315.8,0.01932639]
[1642249550955,1.5166674,3316.0,3315.9,0.01875797]
[1642249551156,1.5166674,3316.0,3315.9,0.03661282]
[1642249551356,1.5166674,3316.0,3315.9,0.05537079]
[1642249551556,1.5166674,3316.0,3315.9,0.05445575]
[1642249551756,1.5166674,3316.0,3315.9,0.05765557]
[1642249552159,1.5166674,3316.0,3315.9,0.01875797]
[1642249552356,1.53179239,3316.0,3315.9,0.01875797]
[1642249552957,1.53179239,3316.0,3315.9,0.05265276]
[1642249553161,1.53179239,3316.0,3315.9,0.01875797]
[1642249553558,0.01512499,3316.0,3315.9,0.0561273]
[1642249554304,0.01512499,3316.0,3315.9,0.01875797]
[1642249554701,0.04361899,3316.0,3315.9,0.01875797]
[1642249554901,0.04361899,3316.0,3315.7,5.0873062]
[1642249554902,1.23545182,3315.9,3315.8,0.01932639]
[1642249555903,1.28091482,3315.9,3315.8,0.01932639]
[1642249556102,1.27209582,3315.9,3315.8,0.01932639]
[1642249556302,1.26518882,3315.9,3315.8,0.01932639]
[1642249556702,1.23545182,3315.9,3315.8,0.01932639]
[1642249556903,0.01512499,3316.0,3315.8,0.01932639]
[1642249557552,0.045463,3315.9,3315.8,0.01932639]
[1642249557752,0.045463,3316.0,3315.8,0.01932639]
[1642249558556,1.09406171,3315.9,3315.8,0.01932639]
[1642249560258,1.12240171,3315.9,3315.8,0.01932639]
[1642249560454,1.09406171,3315.9,3315.8,0.01932639]
[1642249562409,1.10917593,3315.9,3315.8,0.01932639]
[1642249563101,1.13709893,3315.9,3315.8,0.01932639]
[1642249563703,1.17523593,3315.9,3315.8,0.01932639]
[1642249564608,1.13709893,3315.9,3315.8,0.01932639]
[1642249565450,1.14751993,3315.9,3315.8,0.01932639]
[1642249566253,1.13416693,3315.9,3315.8,0.01932639]
[1642249567052,1.14497193,3315.9,3315.8,0.01932639]
[1642249567253,1.13137593,3315.9,3315.8,0.01932639]
[1642249567454,1.1303705,3315.9,3315.8,0.01932639]
[1642249567653,1.1428185,3315.9,3315.8,0.01932639]
[1642249567853,1.1532095,3315.9,3315.8,0.01932639]
[1642249568053,1.1416285,3315.9,3315.8,0.01932639]
[1642249569238,1.1313055,3315.9,3315.8,0.01932639]
[1642249571039,2.83339648,3315.9,3315.8,0.89532526]
[1642249571242,5.64927902,3315.9,3315.8,0.89532526]
[1642249571445,2.85572448,3315.9,3315.8,0.89532526]
[1642249572042,3.37179152,3315.9,3315.8,0.89532526]
[1642249572452,5.69143556,3315.9,3315.8,0.01932639]
[1642249572851,5.69143556,3315.9,3315.5,0.02103166]
[1642249573051,0.045463,3315.6,3315.5,0.02103166]
[1642249573452,0.75412,3315.8,3315.5,0.02103166]
[1642249573652,0.045463,3315.7,3315.5,0.02103166]
[1642249574255,1.74755398,3315.6,3315.5,0.02103166]
[1642249574455,2.91759619,3315.6,3315.5,0.02103166]
[1642249576400,2.91553389,3315.6,3315.5,0.02103166]
[1642249576803,2.89324119,3315.6,3315.5,0.02103166]
[1642249577002,2.87213319,3315.6,3315.4,0.24948411]
[1642249577203,2.87213319,3315.6,3315.5,0.02103166]
[1642249577606,2.88812773,3315.6,3315.5,0.02103166]
[1642249578503,1.18603675,3315.6,3315.5,0.02103166]
[1642249581454,1.20827375,3315.6,3315.5,0.02103166]
[1642249581759,1.18603675,3315.6,3315.5,0.02103166]
[1642249582954,2.73249838,3315.6,3315.5,0.02103166]
[1642249583810,2.77693538,3315.6,3315.5,0.02103166]
[1642249584609,2.77693538,3315.6,3315.4,0.16938411]
[1642249584810,2.77693538,3315.6,3315.5,0.02103166]
[1642249585410,3.06792301,3315.6,3315.5,0.02103166]
[1642249586315,3.06792301,3315.6,3315.4,0.12288114]
[1642249586511,0.045463,3315.5,3315.3,0.02216851]
[1642249586710,0.045463,3315.5,3315.4,0.23189426]